Workbook

Sheet Normalfordeling
A1: =C6 -> 0 | B1: =C14 -> 0 | C1: Normalfordeling
A2: =D14 ->  | B2: =C14 -> 0 | C2: Middelværdi: | D2: 5
A3: =D14 ->  | B3: 0 | C3: Spredning: | D3: 1
C4: Grafvindue
C5: Xmin | D5: Xmaks
A6: =D14 ->  | B6: 0 | C6: 0 | D6: 10
A7: =D14 ->  | B7: =NORMDIST(A7,D2,D3,FALSE) ->  | C7: Areal under frekvensfunktion | E7: =IF(D7<>"",NORMINV(D7,D2,D3),"") -> 
A8: =C12 -> 0 | B8: 0 | C8: Xmin | D8: Xmaks
A9: =C12 -> 0 | B9: =D12 ->  | E9: =IF(AND(C9="",D9=""),"",IF(D9<>"",NORMDIST(D9,D2,D3,TRUE),1)-IF(C9<>"",NORMDIST(C9,D2,D3,TRUE),0)) -> 
A10: 0 | B10: =D12 ->  | C10: Aflæs på kumuleret
A11: =C12 -> 0 | B11: 0 | C11: Indtast X | D11: Beregnet kum %
A12: =IF(C12="","",C12) ->  | B12: =NORMDIST(A12,D2,D3,FALSE) ->  | D12: =IF(C12<>"",NORMDIST(C12,D2,D3,TRUE),"") -> 
C13: Indtast kum % | D13: Beregnet X-værdi
D14: =IF(C14<>"",NORMINV(C14,D2,D3),"") -> 
K18: x

Sheet Hjælp
A1: =Normalfordeling!C$6 -> 0 | B1: =NORMDIST(A1,Normalfordeling!D$2,Normalfordeling!D$3,FALSE) -> 1.486719515e-06 | C1: =IF(AND(A1>=$C$1001,A1<=$C$1002),B1,0) -> 0 | D1: =NORMDIST(A1,Normalfordeling!D$2,Normalfordeling!D$3,TRUE) -> 2.866515719e-07 | E1: Hjælp
A2: =(Normalfordeling!D$6-Normalfordeling!C$6)/1000+A1 -> 0.01 | B2: =NORMDIST(A2,Normalfordeling!D$2,Normalfordeling!D$3,FALSE) -> 1.562867109e-06 | C2: =IF(AND(A2>=$C$1001,A2<=$C$1002),B2,0) -> 0 | D2: =NORMDIST(A2,Normalfordeling!D$2,Normalfordeling!D$3,TRUE) -> 3.018964625e-07 | E2: Bemærk at forskrifterne til frekvensfunktion og kumulerede frekvenser findes i WordMats formelsamling. Beskrivelser kan tilføjes til graferne via menuen indsæt / tekstboks
A3: =(Normalfordeling!D$6-Normalfordeling!C$6)/1000+A2 -> 0.02 | B3: =NORMDIST(A3,Normalfordeling!D$2,Normalfordeling!D$3,FALSE) -> 1.642750588e-06 | C3: 0 | D3: =NORMDIST(A3,Normalfordeling!D$2,Normalfordeling!D$3,TRUE) -> 3.179213662e-07
A4: =(Normalfordeling!D$6-Normalfordeling!C$6)/1000+A3 -> 0.03 | B4: =NORMDIST(A4,Normalfordeling!D$2,Normalfordeling!D$3,FALSE) -> 1.726544522e-06 | C4: 0 | D4: =NORMDIST(A4,Normalfordeling!D$2,Normalfordeling!D$3,TRUE) -> 3.347645083e-07
A5: =(Normalfordeling!D$6-Normalfordeling!C$6)/1000+A4 -> 0.04 | B5: =NORMDIST(A5,Normalfordeling!D$2,Normalfordeling!D$3,FALSE) -> 1.81443119e-06 | C5: 0 | D5: =NORMDIST(A5,Normalfordeling!D$2,Normalfordeling!D$3,TRUE) -> 3.524658982e-07
A6: =(Normalfordeling!D$6-Normalfordeling!C$6)/1000+A5 -> 0.05 | B6: =NORMDIST(A6,Normalfordeling!D$2,Normalfordeling!D$3,FALSE) -> 1.906600903e-06 | C6: 0 | D6: =NORMDIST(A6,Normalfordeling!D$2,Normalfordeling!D$3,TRUE) -> 3.71067408e-07
A7: =(Normalfordeling!D$6-Normalfordeling!C$6)/1000+A6 -> 0.06 | B7: =NORMDIST(A7,Normalfordeling!D$2,Normalfordeling!D$3,FALSE) -> 2.00325233e-06 | C7: 0 | D7: =NORMDIST(A7,Normalfordeling!D$2,Normalfordeling!D$3,TRUE) -> 3.906128543e-07
A8: =(Normalfordeling!D$6-Normalfordeling!C$6)/1000+A7 -> 0.07 | B8: =NORMDIST(A8,Normalfordeling!D$2,Normalfordeling!D$3,FALSE) -> 2.104592843e-06 | C8: 0 | D8: =NORMDIST(A8,Normalfordeling!D$2,Normalfordeling!D$3,TRUE) -> 4.111480838e-07
A9: =(Normalfordeling!D$6-Normalfordeling!C$6)/1000+A8 -> 0.08 | B9: =NORMDIST(A9,Normalfordeling!D$2,Normalfordeling!D$3,FALSE) -> 2.210838875e-06 | C9: 0 | D9: =NORMDIST(A9,Normalfordeling!D$2,Normalfordeling!D$3,TRUE) -> 4.327210619e-07
A10: =(Normalfordeling!D$6-Normalfordeling!C$6)/1000+A9 -> 0.09 | B10: =NORMDIST(A10,Normalfordeling!D$2,Normalfordeling!D$3,FALSE) -> 2.322216285e-06 | C10: 0 | D10: =NORMDIST(A10,Normalfordeling!D$2,Normalfordeling!D$3,TRUE) -> 4.553819648e-07
A11: =(Normalfordeling!D$6-Normalfordeling!C$6)/1000+A10 -> 0.1 | B11: =NORMDIST(A11,Normalfordeling!D$2,Normalfordeling!D$3,FALSE) -> 2.438960746e-06 | C11: 0 | D11: =NORMDIST(A11,Normalfordeling!D$2,Normalfordeling!D$3,TRUE) -> 4.791832766e-07
A12: =(Normalfordeling!D$6-Normalfordeling!C$6)/1000+A11 -> 0.11 | B12: =NORMDIST(A12,Normalfordeling!D$2,Normalfordeling!D$3,FALSE) -> 2.561318141e-06 | C12: 0 | D12: =NORMDIST(A12,Normalfordeling!D$2,Normalfordeling!D$3,TRUE) -> 5.041798884e-07
A13: =(Normalfordeling!D$6-Normalfordeling!C$6)/1000+A12 -> 0.12 | B13: =NORMDIST(A13,Normalfordeling!D$2,Normalfordeling!D$3,FALSE) -> 2.689544974e-06 | C13: 0 | D13: =NORMDIST(A13,Normalfordeling!D$2,Normalfordeling!D$3,TRUE) -> 5.30429203e-07
A14: =(Normalfordeling!D$6-Normalfordeling!C$6)/1000+A13 -> 0.13 | B14: =NORMDIST(A14,Normalfordeling!D$2,Normalfordeling!D$3,FALSE) -> 2.823908801e-06 | C14: 0 | D14: =NORMDIST(A14,Normalfordeling!D$2,Normalfordeling!D$3,TRUE) -> 5.579912432e-07
A15: =(Normalfordeling!D$6-Normalfordeling!C$6)/1000+A14 -> 0.14 | B15: =NORMDIST(A15,Normalfordeling!D$2,Normalfordeling!D$3,FALSE) -> 2.964688669e-06 | C15: 0 | D15: =NORMDIST(A15,Normalfordeling!D$2,Normalfordeling!D$3,TRUE) -> 5.869287645e-07
A16: =(Normalfordeling!D$6-Normalfordeling!C$6)/1000+A15 -> 0.15 | B16: =NORMDIST(A16,Normalfordeling!D$2,Normalfordeling!D$3,FALSE) -> 3.112175579e-06 | C16: 0 | D16: =NORMDIST(A16,Normalfordeling!D$2,Normalfordeling!D$3,TRUE) -> 6.17307372e-07
A17: =(Normalfordeling!D$6-Normalfordeling!C$6)/1000+A16 -> 0.16 | B17: =NORMDIST(A17,Normalfordeling!D$2,Normalfordeling!D$3,FALSE) -> 3.266672964e-06 | C17: 0 | D17: =NORMDIST(A17,Normalfordeling!D$2,Normalfordeling!D$3,TRUE) -> 6.491956429e-07
A18: =(Normalfordeling!D$6-Normalfordeling!C$6)/1000+A17 -> 0.17 | B18: =NORMDIST(A18,Normalfordeling!D$2,Normalfordeling!D$3,FALSE) -> 3.428497178e-06 | C18: 0 | D18: =NORMDIST(A18,Normalfordeling!D$2,Normalfordeling!D$3,TRUE) -> 6.826652526e-07
A19: =(Normalfordeling!D$6-Normalfordeling!C$6)/1000+A18 -> 0.18 | B19: =NORMDIST(A19,Normalfordeling!D$2,Normalfordeling!D$3,FALSE) -> 3.597978014e-06 | C19: 0 | D19: =NORMDIST(A19,Normalfordeling!D$2,Normalfordeling!D$3,TRUE) -> 7.177911069e-07
A20: =(Normalfordeling!D$6-Normalfordeling!C$6)/1000+A19 -> 0.19 | B20: =NORMDIST(A20,Normalfordeling!D$2,Normalfordeling!D$3,FALSE) -> 3.775459227e-06 | C20: 0 | D20: =NORMDIST(A20,Normalfordeling!D$2,Normalfordeling!D$3,TRUE) -> 7.546514791e-07
A21: =(Normalfordeling!D$6-Normalfordeling!C$6)/1000+A20 -> 0.2 | B21: =NORMDIST(A21,Normalfordeling!D$2,Normalfordeling!D$3,FALSE) -> 3.961299091e-06 | C21: 0 | D21: =NORMDIST(A21,Normalfordeling!D$2,Normalfordeling!D$3,TRUE) -> 7.93328152e-07
A22: =(Normalfordeling!D$6-Normalfordeling!C$6)/1000+A21 -> 0.21 | B22: =NORMDIST(A22,Normalfordeling!D$2,Normalfordeling!D$3,FALSE) -> 4.155870965e-06 | C22: 0 | D22: =NORMDIST(A22,Normalfordeling!D$2,Normalfordeling!D$3,TRUE) -> 8.339065659e-07
A23: =(Normalfordeling!D$6-Normalfordeling!C$6)/1000+A22 -> 0.22 | B23: =NORMDIST(A23,Normalfordeling!D$2,Normalfordeling!D$3,FALSE) -> 4.35956388e-06 | C23: 0 | D23: =NORMDIST(A23,Normalfordeling!D$2,Normalfordeling!D$3,TRUE) -> 8.764759729e-07
A24: =(Normalfordeling!D$6-Normalfordeling!C$6)/1000+A23 -> 0.23 | B24: =NORMDIST(A24,Normalfordeling!D$2,Normalfordeling!D$3,FALSE) -> 4.572783154e-06 | C24: 0 | D24: =NORMDIST(A24,Normalfordeling!D$2,Normalfordeling!D$3,TRUE) -> 9.211295962e-07
A25: =(Normalfordeling!D$6-Normalfordeling!C$6)/1000+A24 -> 0.24 | B25: =NORMDIST(A25,Normalfordeling!D$2,Normalfordeling!D$3,FALSE) -> 4.795951022e-06 | C25: 0 | D25: =NORMDIST(A25,Normalfordeling!D$2,Normalfordeling!D$3,TRUE) -> 9.67964796e-07
A26: =(Normalfordeling!D$6-Normalfordeling!C$6)/1000+A25 -> 0.25 | B26: =NORMDIST(A26,Normalfordeling!D$2,Normalfordeling!D$3,FALSE) -> 5.029507289e-06 | C26: 0 | D26: =NORMDIST(A26,Normalfordeling!D$2,Normalfordeling!D$3,TRUE) -> 1.017083243e-06
A27: =(Normalfordeling!D$6-Normalfordeling!C$6)/1000+A26 -> 0.26 | B27: =NORMDIST(A27,Normalfordeling!D$2,Normalfordeling!D$3,FALSE) -> 5.27391001e-06 | C27: 0 | D27: =NORMDIST(A27,Normalfordeling!D$2,Normalfordeling!D$3,TRUE) -> 1.068591095e-06
A28: =(Normalfordeling!D$6-Normalfordeling!C$6)/1000+A27 -> 0.27 | B28: =NORMDIST(A28,Normalfordeling!D$2,Normalfordeling!D$3,FALSE) -> 5.529636189e-06 | C28: 0 | D28: =NORMDIST(A28,Normalfordeling!D$2,Normalfordeling!D$3,TRUE) -> 1.122599185e-06
A29: =(Normalfordeling!D$6-Normalfordeling!C$6)/1000+A28 -> 0.28 | B29: =NORMDIST(A29,Normalfordeling!D$2,Normalfordeling!D$3,FALSE) -> 5.797182506e-06 | C29: 0 | D29: =NORMDIST(A29,Normalfordeling!D$2,Normalfordeling!D$3,TRUE) -> 1.179223217e-06
A30: =(Normalfordeling!D$6-Normalfordeling!C$6)/1000+A29 -> 0.29 | B30: =NORMDIST(A30,Normalfordeling!D$2,Normalfordeling!D$3,FALSE) -> 6.077066067e-06 | C30: 0 | D30: =NORMDIST(A30,Normalfordeling!D$2,Normalfordeling!D$3,TRUE) -> 1.238583957e-06
A31: =(Normalfordeling!D$6-Normalfordeling!C$6)/1000+A30 -> 0.3 | B31: =NORMDIST(A31,Normalfordeling!D$2,Normalfordeling!D$3,FALSE) -> 6.369825179e-06 | C31: 0 | D31: =NORMDIST(A31,Normalfordeling!D$2,Normalfordeling!D$3,TRUE) -> 1.300807454e-06
A32: =(Normalfordeling!D$6-Normalfordeling!C$6)/1000+A31 -> 0.31 | B32: =NORMDIST(A32,Normalfordeling!D$2,Normalfordeling!D$3,FALSE) -> 6.676020155e-06 | C32: 0 | D32: =NORMDIST(A32,Normalfordeling!D$2,Normalfordeling!D$3,TRUE) -> 1.366025245e-06
A33: =(Normalfordeling!D$6-Normalfordeling!C$6)/1000+A32 -> 0.32 | B33: =NORMDIST(A33,Normalfordeling!D$2,Normalfordeling!D$3,FALSE) -> 6.996234143e-06 | C33: 0 | D33: =NORMDIST(A33,Normalfordeling!D$2,Normalfordeling!D$3,TRUE) -> 1.434374584e-06
A34: =(Normalfordeling!D$6-Normalfordeling!C$6)/1000+A33 -> 0.33 | B34: =NORMDIST(A34,Normalfordeling!D$2,Normalfordeling!D$3,FALSE) -> 7.331073989e-06 | C34: 0 | D34: =NORMDIST(A34,Normalfordeling!D$2,Normalfordeling!D$3,TRUE) -> 1.505998678e-06
A35: =(Normalfordeling!D$6-Normalfordeling!C$6)/1000+A34 -> 0.34 | B35: =NORMDIST(A35,Normalfordeling!D$2,Normalfordeling!D$3,FALSE) -> 7.681171117e-06 | C35: 0 | D35: =NORMDIST(A35,Normalfordeling!D$2,Normalfordeling!D$3,TRUE) -> 1.581046919e-06
A36: =(Normalfordeling!D$6-Normalfordeling!C$6)/1000+A35 -> 0.35 | B36: =NORMDIST(A36,Normalfordeling!D$2,Normalfordeling!D$3,FALSE) -> 8.047182456e-06 | C36: 0 | D36: =NORMDIST(A36,Normalfordeling!D$2,Normalfordeling!D$3,TRUE) -> 1.659675144e-06
A37: =(Normalfordeling!D$6-Normalfordeling!C$6)/1000+A36 -> 0.36 | B37: =NORMDIST(A37,Normalfordeling!D$2,Normalfordeling!D$3,FALSE) -> 8.429791383e-06 | C37: 0 | D37: =NORMDIST(A37,Normalfordeling!D$2,Normalfordeling!D$3,TRUE) -> 1.74204589e-06
A38: =(Normalfordeling!D$6-Normalfordeling!C$6)/1000+A37 -> 0.37 | B38: =NORMDIST(A38,Normalfordeling!D$2,Normalfordeling!D$3,FALSE) -> 8.829708704e-06 | C38: 0 | D38: =NORMDIST(A38,Normalfordeling!D$2,Normalfordeling!D$3,TRUE) -> 1.828328664e-06
A39: =(Normalfordeling!D$6-Normalfordeling!C$6)/1000+A38 -> 0.38 | B39: =NORMDIST(A39,Normalfordeling!D$2,Normalfordeling!D$3,FALSE) -> 9.24767367e-06 | C39: 0 | D39: =NORMDIST(A39,Normalfordeling!D$2,Normalfordeling!D$3,TRUE) -> 1.91870022e-06
A40: =(Normalfordeling!D$6-Normalfordeling!C$6)/1000+A39 -> 0.39 | B40: =NORMDIST(A40,Normalfordeling!D$2,Normalfordeling!D$3,FALSE) -> 9.68445502e-06 | C40: 0 | D40: =NORMDIST(A40,Normalfordeling!D$2,Normalfordeling!D$3,TRUE) -> 2.013344855e-06
A41: =(Normalfordeling!D$6-Normalfordeling!C$6)/1000+A40 -> 0.4 | B41: =NORMDIST(A41,Normalfordeling!D$2,Normalfordeling!D$3,FALSE) -> 1.014085207e-05 | C41: 0 | D41: =NORMDIST(A41,Normalfordeling!D$2,Normalfordeling!D$3,TRUE) -> 2.112454703e-06
A42: =(Normalfordeling!D$6-Normalfordeling!C$6)/1000+A41 -> 0.41 | B42: =NORMDIST(A42,Normalfordeling!D$2,Normalfordeling!D$3,FALSE) -> 1.061769581e-05 | C42: 0 | D42: =NORMDIST(A42,Normalfordeling!D$2,Normalfordeling!D$3,TRUE) -> 2.216230048e-06
A43: =(Normalfordeling!D$6-Normalfordeling!C$6)/1000+A42 -> 0.42 | B43: =NORMDIST(A43,Normalfordeling!D$2,Normalfordeling!D$3,FALSE) -> 1.111585008e-05 | C43: 0 | D43: =NORMDIST(A43,Normalfordeling!D$2,Normalfordeling!D$3,TRUE) -> 2.32487965e-06
A44: =(Normalfordeling!D$6-Normalfordeling!C$6)/1000+A43 -> 0.43 | B44: =NORMDIST(A44,Normalfordeling!D$2,Normalfordeling!D$3,FALSE) -> 1.163621276e-05 | C44: 0 | D44: =NORMDIST(A44,Normalfordeling!D$2,Normalfordeling!D$3,TRUE) -> 2.438621074e-06
A45: =(Normalfordeling!D$6-Normalfordeling!C$6)/1000+A44 -> 0.44 | B45: =NORMDIST(A45,Normalfordeling!D$2,Normalfordeling!D$3,FALSE) -> 1.217971697e-05 | C45: 0 | D45: =NORMDIST(A45,Normalfordeling!D$2,Normalfordeling!D$3,TRUE) -> 2.557681039e-06
A46: =(Normalfordeling!D$6-Normalfordeling!C$6)/1000+A45 -> 0.45 | B46: =NORMDIST(A46,Normalfordeling!D$2,Normalfordeling!D$3,FALSE) -> 1.274733238e-05 | C46: 0 | D46: =NORMDIST(A46,Normalfordeling!D$2,Normalfordeling!D$3,TRUE) -> 2.68229578e-06
A47: =(Normalfordeling!D$6-Normalfordeling!C$6)/1000+A46 -> 0.46 | B47: =NORMDIST(A47,Normalfordeling!D$2,Normalfordeling!D$3,FALSE) -> 1.334006649e-05 | C47: 0 | D47: =NORMDIST(A47,Normalfordeling!D$2,Normalfordeling!D$3,TRUE) -> 2.812711412e-06
A48: =(Normalfordeling!D$6-Normalfordeling!C$6)/1000+A47 -> 0.47 | B48: =NORMDIST(A48,Normalfordeling!D$2,Normalfordeling!D$3,FALSE) -> 1.395896599e-05 | C48: 0 | D48: =NORMDIST(A48,Normalfordeling!D$2,Normalfordeling!D$3,TRUE) -> 2.949184323e-06
A49: =(Normalfordeling!D$6-Normalfordeling!C$6)/1000+A48 -> 0.48 | B49: =NORMDIST(A49,Normalfordeling!D$2,Normalfordeling!D$3,FALSE) -> 1.460511814e-05 | C49: 0 | D49: =NORMDIST(A49,Normalfordeling!D$2,Normalfordeling!D$3,TRUE) -> 3.091981569e-06
A50: =(Normalfordeling!D$6-Normalfordeling!C$6)/1000+A49 -> 0.49 | B50: =NORMDIST(A50,Normalfordeling!D$2,Normalfordeling!D$3,FALSE) -> 1.527965225e-05 | C50: 0 | D50: =NORMDIST(A50,Normalfordeling!D$2,Normalfordeling!D$3,TRUE) -> 3.241381287e-06
A51: =(Normalfordeling!D$6-Normalfordeling!C$6)/1000+A50 -> 0.5 | B51: =NORMDIST(A51,Normalfordeling!D$2,Normalfordeling!D$3,FALSE) -> 1.598374111e-05 | C51: 0 | D51: =NORMDIST(A51,Normalfordeling!D$2,Normalfordeling!D$3,TRUE) -> 3.397673125e-06
A52: =(Normalfordeling!D$6-Normalfordeling!C$6)/1000+A51 -> 0.51 | B52: =NORMDIST(A52,Normalfordeling!D$2,Normalfordeling!D$3,FALSE) -> 1.671860255e-05 | C52: 0 | D52: =NORMDIST(A52,Normalfordeling!D$2,Normalfordeling!D$3,TRUE) -> 3.56115868e-06
A53: =(Normalfordeling!D$6-Normalfordeling!C$6)/1000+A52 -> 0.52 | B53: =NORMDIST(A53,Normalfordeling!D$2,Normalfordeling!D$3,FALSE) -> 1.748550103e-05 | C53: 0 | D53: =NORMDIST(A53,Normalfordeling!D$2,Normalfordeling!D$3,TRUE) -> 3.732151961e-06
A54: =(Normalfordeling!D$6-Normalfordeling!C$6)/1000+A53 -> 0.53 | B54: =NORMDIST(A54,Normalfordeling!D$2,Normalfordeling!D$3,FALSE) -> 1.828574921e-05 | C54: 0 | D54: =NORMDIST(A54,Normalfordeling!D$2,Normalfordeling!D$3,TRUE) -> 3.91097986e-06
A55: =(Normalfordeling!D$6-Normalfordeling!C$6)/1000+A54 -> 0.54 | B55: =NORMDIST(A55,Normalfordeling!D$2,Normalfordeling!D$3,FALSE) -> 1.912070969e-05 | C55: 0 | D55: =NORMDIST(A55,Normalfordeling!D$2,Normalfordeling!D$3,TRUE) -> 4.097982647e-06
A56: =(Normalfordeling!D$6-Normalfordeling!C$6)/1000+A55 -> 0.55 | B56: =NORMDIST(A56,Normalfordeling!D$2,Normalfordeling!D$3,FALSE) -> 1.999179671e-05 | C56: 0 | D56: =NORMDIST(A56,Normalfordeling!D$2,Normalfordeling!D$3,TRUE) -> 4.29351447e-06
A57: =(Normalfordeling!D$6-Normalfordeling!C$6)/1000+A56 -> 0.56 | B57: =NORMDIST(A57,Normalfordeling!D$2,Normalfordeling!D$3,FALSE) -> 2.09004779e-05 | C57: 0 | D57: =NORMDIST(A57,Normalfordeling!D$2,Normalfordeling!D$3,TRUE) -> 4.497943889e-06
A58: =(Normalfordeling!D$6-Normalfordeling!C$6)/1000+A57 -> 0.57 | B58: =NORMDIST(A58,Normalfordeling!D$2,Normalfordeling!D$3,FALSE) -> 2.184827617e-05 | C58: 0 | D58: =NORMDIST(A58,Normalfordeling!D$2,Normalfordeling!D$3,TRUE) -> 4.711654412e-06
A59: =(Normalfordeling!D$6-Normalfordeling!C$6)/1000+A58 -> 0.58 | B59: =NORMDIST(A59,Normalfordeling!D$2,Normalfordeling!D$3,FALSE) -> 2.283677157e-05 | C59: 0 | D59: =NORMDIST(A59,Normalfordeling!D$2,Normalfordeling!D$3,TRUE) -> 4.935045063e-06
A60: =(Normalfordeling!D$6-Normalfordeling!C$6)/1000+A59 -> 0.59 | B60: =NORMDIST(A60,Normalfordeling!D$2,Normalfordeling!D$3,FALSE) -> 2.38676032e-05 | C60: 0 | D60: =NORMDIST(A60,Normalfordeling!D$2,Normalfordeling!D$3,TRUE) -> 5.168530957e-06
A61: =(Normalfordeling!D$6-Normalfordeling!C$6)/1000+A60 -> 0.6 | B61: =NORMDIST(A61,Normalfordeling!D$2,Normalfordeling!D$3,FALSE) -> 2.494247129e-05 | C61: 0 | D61: =NORMDIST(A61,Normalfordeling!D$2,Normalfordeling!D$3,TRUE) -> 5.412543908e-06
A62: =(Normalfordeling!D$6-Normalfordeling!C$6)/1000+A61 -> 0.61 | B62: =NORMDIST(A62,Normalfordeling!D$2,Normalfordeling!D$3,FALSE) -> 2.60631392e-05 | C62: 0 | D62: =NORMDIST(A62,Normalfordeling!D$2,Normalfordeling!D$3,TRUE) -> 5.667533042e-06
A63: =(Normalfordeling!D$6-Normalfordeling!C$6)/1000+A62 -> 0.62 | B63: =NORMDIST(A63,Normalfordeling!D$2,Normalfordeling!D$3,FALSE) -> 2.723143555e-05 | C63: 0 | D63: =NORMDIST(A63,Normalfordeling!D$2,Normalfordeling!D$3,TRUE) -> 5.933965446e-06
A64: =(Normalfordeling!D$6-Normalfordeling!C$6)/1000+A63 -> 0.63 | B64: =NORMDIST(A64,Normalfordeling!D$2,Normalfordeling!D$3,FALSE) -> 2.844925645e-05 | C64: 0 | D64: =NORMDIST(A64,Normalfordeling!D$2,Normalfordeling!D$3,TRUE) -> 6.212326827e-06
A65: =(Normalfordeling!D$6-Normalfordeling!C$6)/1000+A64 -> 0.64 | B65: =NORMDIST(A65,Normalfordeling!D$2,Normalfordeling!D$3,FALSE) -> 2.971856768e-05 | C65: 0 | D65: =NORMDIST(A65,Normalfordeling!D$2,Normalfordeling!D$3,TRUE) -> 6.503122201e-06
A66: =(Normalfordeling!D$6-Normalfordeling!C$6)/1000+A65 -> 0.65 | B66: =NORMDIST(A66,Normalfordeling!D$2,Normalfordeling!D$3,FALSE) -> 3.104140706e-05 | C66: =IF(AND(A66>=$C$1001,A66<=$C$1002),B66,0) -> 0 | D66: =NORMDIST(A66,Normalfordeling!D$2,Normalfordeling!D$3,TRUE) -> 6.806876599e-06
A67: =(Normalfordeling!D$6-Normalfordeling!C$6)/1000+A66 -> 0.66 | B67: =NORMDIST(A67,Normalfordeling!D$2,Normalfordeling!D$3,FALSE) -> 3.24198868e-05 | C67: 0 | D67: =NORMDIST(A67,Normalfordeling!D$2,Normalfordeling!D$3,TRUE) -> 7.124135801e-06
A68: =(Normalfordeling!D$6-Normalfordeling!C$6)/1000+A67 -> 0.67 | B68: =NORMDIST(A68,Normalfordeling!D$2,Normalfordeling!D$3,FALSE) -> 3.385619598e-05 | C68: 0 | D68: =NORMDIST(A68,Normalfordeling!D$2,Normalfordeling!D$3,TRUE) -> 7.455467091e-06
A69: =(Normalfordeling!D$6-Normalfordeling!C$6)/1000+A68 -> 0.68 | B69: =NORMDIST(A69,Normalfordeling!D$2,Normalfordeling!D$3,FALSE) -> 3.5352603e-05 | C69: 0 | D69: =NORMDIST(A69,Normalfordeling!D$2,Normalfordeling!D$3,TRUE) -> 7.801460038e-06
A70: =(Normalfordeling!D$6-Normalfordeling!C$6)/1000+A69 -> 0.69 | B70: =NORMDIST(A70,Normalfordeling!D$2,Normalfordeling!D$3,FALSE) -> 3.691145826e-05 | C70: 0 | D70: =NORMDIST(A70,Normalfordeling!D$2,Normalfordeling!D$3,TRUE) -> 8.162727303e-06
A71: =(Normalfordeling!D$6-Normalfordeling!C$6)/1000+A70 -> 0.7 | B71: =NORMDIST(A71,Normalfordeling!D$2,Normalfordeling!D$3,FALSE) -> 3.853519674e-05 | C71: 0 | D71: =NORMDIST(A71,Normalfordeling!D$2,Normalfordeling!D$3,TRUE) -> 8.539905471e-06
A72: =(Normalfordeling!D$6-Normalfordeling!C$6)/1000+A71 -> 0.71 | B72: =NORMDIST(A72,Normalfordeling!D$2,Normalfordeling!D$3,FALSE) -> 4.02263408e-05 | C72: 0 | D72: =NORMDIST(A72,Normalfordeling!D$2,Normalfordeling!D$3,TRUE) -> 8.933655913e-06
A73: =(Normalfordeling!D$6-Normalfordeling!C$6)/1000+A72 -> 0.72 | B73: =NORMDIST(A73,Normalfordeling!D$2,Normalfordeling!D$3,FALSE) -> 4.198750293e-05 | C73: 0 | D73: =NORMDIST(A73,Normalfordeling!D$2,Normalfordeling!D$3,TRUE) -> 9.34466567e-06
A74: =(Normalfordeling!D$6-Normalfordeling!C$6)/1000+A73 -> 0.73 | B74: =NORMDIST(A74,Normalfordeling!D$2,Normalfordeling!D$3,FALSE) -> 4.38213887e-05 | C74: 0 | D74: =NORMDIST(A74,Normalfordeling!D$2,Normalfordeling!D$3,TRUE) -> 9.773648373e-06
A75: =(Normalfordeling!D$6-Normalfordeling!C$6)/1000+A74 -> 0.74 | B75: =NORMDIST(A75,Normalfordeling!D$2,Normalfordeling!D$3,FALSE) -> 4.573079969e-05 | C75: 0 | D75: =NORMDIST(A75,Normalfordeling!D$2,Normalfordeling!D$3,TRUE) -> 1.022134518e-05
A76: =(Normalfordeling!D$6-Normalfordeling!C$6)/1000+A75 -> 0.75 | B76: =NORMDIST(A76,Normalfordeling!D$2,Normalfordeling!D$3,FALSE) -> 4.771863654e-05 | C76: 0 | D76: =NORMDIST(A76,Normalfordeling!D$2,Normalfordeling!D$3,TRUE) -> 1.068852577e-05
A77: =(Normalfordeling!D$6-Normalfordeling!C$6)/1000+A76 -> 0.76 | B77: =NORMDIST(A77,Normalfordeling!D$2,Normalfordeling!D$3,FALSE) -> 4.97879021e-05 | C77: 0 | D77: =NORMDIST(A77,Normalfordeling!D$2,Normalfordeling!D$3,TRUE) -> 1.117598933e-05
A78: =(Normalfordeling!D$6-Normalfordeling!C$6)/1000+A77 -> 0.77 | B78: =NORMDIST(A78,Normalfordeling!D$2,Normalfordeling!D$3,FALSE) -> 5.194170462e-05 | C78: 0 | D78: =NORMDIST(A78,Normalfordeling!D$2,Normalfordeling!D$3,TRUE) -> 1.168456559e-05
A79: =(Normalfordeling!D$6-Normalfordeling!C$6)/1000+A78 -> 0.78 | B79: =NORMDIST(A79,Normalfordeling!D$2,Normalfordeling!D$3,FALSE) -> 5.418326109e-05 | C79: 0 | D79: =NORMDIST(A79,Normalfordeling!D$2,Normalfordeling!D$3,TRUE) -> 1.221511593e-05
A80: =(Normalfordeling!D$6-Normalfordeling!C$6)/1000+A79 -> 0.79 | B80: =NORMDIST(A80,Normalfordeling!D$2,Normalfordeling!D$3,FALSE) -> 5.651590058e-05 | C80: 0 | D80: =NORMDIST(A80,Normalfordeling!D$2,Normalfordeling!D$3,TRUE) -> 1.276853441e-05
A81: =(Normalfordeling!D$6-Normalfordeling!C$6)/1000+A80 -> 0.8 | B81: =NORMDIST(A81,Normalfordeling!D$2,Normalfordeling!D$3,FALSE) -> 5.894306776e-05 | C81: 0 | D81: =NORMDIST(A81,Normalfordeling!D$2,Normalfordeling!D$3,TRUE) -> 1.334574902e-05
A82: =(Normalfordeling!D$6-Normalfordeling!C$6)/1000+A81 -> 0.81 | B82: =NORMDIST(A82,Normalfordeling!D$2,Normalfordeling!D$3,FALSE) -> 6.146832643e-05 | C82: 0 | D82: =NORMDIST(A82,Normalfordeling!D$2,Normalfordeling!D$3,TRUE) -> 1.394772273e-05
A83: =(Normalfordeling!D$6-Normalfordeling!C$6)/1000+A82 -> 0.82 | B83: =NORMDIST(A83,Normalfordeling!D$2,Normalfordeling!D$3,FALSE) -> 6.409536323e-05 | C83: 0 | D83: =NORMDIST(A83,Normalfordeling!D$2,Normalfordeling!D$3,TRUE) -> 1.457545479e-05
A84: =(Normalfordeling!D$6-Normalfordeling!C$6)/1000+A83 -> 0.83 | B84: =NORMDIST(A84,Normalfordeling!D$2,Normalfordeling!D$3,FALSE) -> 6.682799134e-05 | C84: 0 | D84: =NORMDIST(A84,Normalfordeling!D$2,Normalfordeling!D$3,TRUE) -> 1.522998195e-05
A85: =(Normalfordeling!D$6-Normalfordeling!C$6)/1000+A84 -> 0.84 | B85: =NORMDIST(A85,Normalfordeling!D$2,Normalfordeling!D$3,FALSE) -> 6.967015437e-05 | C85: 0 | D85: =NORMDIST(A85,Normalfordeling!D$2,Normalfordeling!D$3,TRUE) -> 1.591237972e-05
A86: =(Normalfordeling!D$6-Normalfordeling!C$6)/1000+A85 -> 0.85 | B86: =NORMDIST(A86,Normalfordeling!D$2,Normalfordeling!D$3,FALSE) -> 7.26259303e-05 | C86: 0 | D86: =NORMDIST(A86,Normalfordeling!D$2,Normalfordeling!D$3,TRUE) -> 1.662376373e-05
A87: =(Normalfordeling!D$6-Normalfordeling!C$6)/1000+A86 -> 0.86 | B87: =NORMDIST(A87,Normalfordeling!D$2,Normalfordeling!D$3,FALSE) -> 7.569953553e-05 | C87: 0 | D87: =NORMDIST(A87,Normalfordeling!D$2,Normalfordeling!D$3,TRUE) -> 1.736529107e-05
A88: =(Normalfordeling!D$6-Normalfordeling!C$6)/1000+A87 -> 0.87 | B88: =NORMDIST(A88,Normalfordeling!D$2,Normalfordeling!D$3,FALSE) -> 7.889532901e-05 | C88: 0 | D88: =NORMDIST(A88,Normalfordeling!D$2,Normalfordeling!D$3,TRUE) -> 1.813816172e-05
A89: =(Normalfordeling!D$6-Normalfordeling!C$6)/1000+A88 -> 0.88 | B89: =NORMDIST(A89,Normalfordeling!D$2,Normalfordeling!D$3,FALSE) -> 8.221781654e-05 | C89: 0 | D89: =NORMDIST(A89,Normalfordeling!D$2,Normalfordeling!D$3,TRUE) -> 1.894361995e-05
A90: =(Normalfordeling!D$6-Normalfordeling!C$6)/1000+A89 -> 0.89 | B90: =NORMDIST(A90,Normalfordeling!D$2,Normalfordeling!D$3,FALSE) -> 8.567165506e-05 | C90: 0 | D90: =NORMDIST(A90,Normalfordeling!D$2,Normalfordeling!D$3,TRUE) -> 1.978295587e-05
A91: =(Normalfordeling!D$6-Normalfordeling!C$6)/1000+A90 -> 0.9 | B91: =NORMDIST(A91,Normalfordeling!D$2,Normalfordeling!D$3,FALSE) -> 8.926165718e-05 | C91: 0 | D91: =NORMDIST(A91,Normalfordeling!D$2,Normalfordeling!D$3,TRUE) -> 2.065750691e-05
A92: =(Normalfordeling!D$6-Normalfordeling!C$6)/1000+A91 -> 0.91 | B92: =NORMDIST(A92,Normalfordeling!D$2,Normalfordeling!D$3,FALSE) -> 9.299279572e-05 | C92: 0 | D92: =NORMDIST(A92,Normalfordeling!D$2,Normalfordeling!D$3,TRUE) -> 2.156865945e-05
A93: =(Normalfordeling!D$6-Normalfordeling!C$6)/1000+A92 -> 0.92 | B93: =NORMDIST(A93,Normalfordeling!D$2,Normalfordeling!D$3,FALSE) -> 9.68702084e-05 | C93: 0 | D93: =NORMDIST(A93,Normalfordeling!D$2,Normalfordeling!D$3,TRUE) -> 2.251785039e-05
A94: =(Normalfordeling!D$6-Normalfordeling!C$6)/1000+A93 -> 0.93 | B94: =NORMDIST(A94,Normalfordeling!D$2,Normalfordeling!D$3,FALSE) -> 0.0001008992026 | C94: 0 | D94: =NORMDIST(A94,Normalfordeling!D$2,Normalfordeling!D$3,TRUE) -> 2.350656887e-05
A95: =(Normalfordeling!D$6-Normalfordeling!C$6)/1000+A94 -> 0.94 | B95: =NORMDIST(A95,Normalfordeling!D$2,Normalfordeling!D$3,FALSE) -> 0.0001050852604 | C95: 0 | D95: =NORMDIST(A95,Normalfordeling!D$2,Normalfordeling!D$3,TRUE) -> 2.453635797e-05
A96: =(Normalfordeling!D$6-Normalfordeling!C$6)/1000+A95 -> 0.95 | B96: =NORMDIST(A96,Normalfordeling!D$2,Normalfordeling!D$3,FALSE) -> 0.0001094340434 | C96: 0 | D96: =NORMDIST(A96,Normalfordeling!D$2,Normalfordeling!D$3,TRUE) -> 2.560881647e-05
A97: =(Normalfordeling!D$6-Normalfordeling!C$6)/1000+A96 -> 0.96 | B97: =NORMDIST(A97,Normalfordeling!D$2,Normalfordeling!D$3,FALSE) -> 0.0001139513981 | C97: 0 | D97: =NORMDIST(A97,Normalfordeling!D$2,Normalfordeling!D$3,TRUE) -> 2.672560072e-05
A98: =(Normalfordeling!D$6-Normalfordeling!C$6)/1000+A97 -> 0.97 | B98: =NORMDIST(A98,Normalfordeling!D$2,Normalfordeling!D$3,FALSE) -> 0.0001186433608 | C98: 0 | D98: =NORMDIST(A98,Normalfordeling!D$2,Normalfordeling!D$3,TRUE) -> 2.788842644e-05
A99: =(Normalfordeling!D$6-Normalfordeling!C$6)/1000+A98 -> 0.98 | B99: =NORMDIST(A99,Normalfordeling!D$2,Normalfordeling!D$3,FALSE) -> 0.0001235161633 | C99: 0 | D99: =NORMDIST(A99,Normalfordeling!D$2,Normalfordeling!D$3,TRUE) -> 2.909907071e-05
A100: =(Normalfordeling!D$6-Normalfordeling!C$6)/1000+A99 -> 0.99 | B100: =NORMDIST(A100,Normalfordeling!D$2,Normalfordeling!D$3,FALSE) -> 0.0001285762386 | C100: 0 | D100: =NORMDIST(A100,Normalfordeling!D$2,Normalfordeling!D$3,TRUE) -> 3.035937393e-05
A101: =(Normalfordeling!D$6-Normalfordeling!C$6)/1000+A100 -> 1 | B101: =NORMDIST(A101,Normalfordeling!D$2,Normalfordeling!D$3,FALSE) -> 0.0001338302258 | C101: 0 | D101: =NORMDIST(A101,Normalfordeling!D$2,Normalfordeling!D$3,TRUE) -> 3.167124183e-05
A102: =(Normalfordeling!D$6-Normalfordeling!C$6)/1000+A101 -> 1.01 | B102: =NORMDIST(A102,Normalfordeling!D$2,Normalfordeling!D$3,FALSE) -> 0.0001392849765 | C102: 0 | D102: =NORMDIST(A102,Normalfordeling!D$2,Normalfordeling!D$3,TRUE) -> 3.303664763e-05
A103: =(Normalfordeling!D$6-Normalfordeling!C$6)/1000+A102 -> 1.02 | B103: =NORMDIST(A103,Normalfordeling!D$2,Normalfordeling!D$3,FALSE) -> 0.0001449475604 | C103: 0 | D103: =NORMDIST(A103,Normalfordeling!D$2,Normalfordeling!D$3,TRUE) -> 3.445763412e-05
A104: =(Normalfordeling!D$6-Normalfordeling!C$6)/1000+A103 -> 1.03 | B104: =NORMDIST(A104,Normalfordeling!D$2,Normalfordeling!D$3,FALSE) -> 0.0001508252716 | C104: 0 | D104: =NORMDIST(A104,Normalfordeling!D$2,Normalfordeling!D$3,TRUE) -> 3.59363159e-05
A105: =(Normalfordeling!D$6-Normalfordeling!C$6)/1000+A104 -> 1.04 | B105: =NORMDIST(A105,Normalfordeling!D$2,Normalfordeling!D$3,FALSE) -> 0.0001569256341 | C105: 0 | D105: =NORMDIST(A105,Normalfordeling!D$2,Normalfordeling!D$3,TRUE) -> 3.747488169e-05
A106: =(Normalfordeling!D$6-Normalfordeling!C$6)/1000+A105 -> 1.05 | B106: =NORMDIST(A106,Normalfordeling!D$2,Normalfordeling!D$3,FALSE) -> 0.0001632564088 | C106: 0 | D106: =NORMDIST(A106,Normalfordeling!D$2,Normalfordeling!D$3,TRUE) -> 3.90755966e-05
A107: =(Normalfordeling!D$6-Normalfordeling!C$6)/1000+A106 -> 1.06 | B107: =NORMDIST(A107,Normalfordeling!D$2,Normalfordeling!D$3,FALSE) -> 0.0001698255994 | C107: 0 | D107: =NORMDIST(A107,Normalfordeling!D$2,Normalfordeling!D$3,TRUE) -> 4.074080456e-05
A108: =(Normalfordeling!D$6-Normalfordeling!C$6)/1000+A107 -> 1.07 | B108: =NORMDIST(A108,Normalfordeling!D$2,Normalfordeling!D$3,FALSE) -> 0.0001766414593 | C108: 0 | D108: =NORMDIST(A108,Normalfordeling!D$2,Normalfordeling!D$3,TRUE) -> 4.247293079e-05
A109: =(Normalfordeling!D$6-Normalfordeling!C$6)/1000+A108 -> 1.08 | B109: =NORMDIST(A109,Normalfordeling!D$2,Normalfordeling!D$3,FALSE) -> 0.000183712498 | C109: 0 | D109: =NORMDIST(A109,Normalfordeling!D$2,Normalfordeling!D$3,TRUE) -> 4.427448431e-05
A110: =(Normalfordeling!D$6-Normalfordeling!C$6)/1000+A109 -> 1.09 | B110: =NORMDIST(A110,Normalfordeling!D$2,Normalfordeling!D$3,FALSE) -> 0.0001910474879 | C110: 0 | D110: =NORMDIST(A110,Normalfordeling!D$2,Normalfordeling!D$3,TRUE) -> 4.614806056e-05
A111: =(Normalfordeling!D$6-Normalfordeling!C$6)/1000+A110 -> 1.1 | B111: =NORMDIST(A111,Normalfordeling!D$2,Normalfordeling!D$3,FALSE) -> 0.0001986554714 | C111: 0 | D111: =NORMDIST(A111,Normalfordeling!D$2,Normalfordeling!D$3,TRUE) -> 4.809634402e-05
A112: =(Normalfordeling!D$6-Normalfordeling!C$6)/1000+A111 -> 1.11 | B112: =NORMDIST(A112,Normalfordeling!D$2,Normalfordeling!D$3,FALSE) -> 0.000206545768 | C112: 0 | D112: =NORMDIST(A112,Normalfordeling!D$2,Normalfordeling!D$3,TRUE) -> 5.0122111e-05
A113: =(Normalfordeling!D$6-Normalfordeling!C$6)/1000+A112 -> 1.12 | B113: =NORMDIST(A113,Normalfordeling!D$2,Normalfordeling!D$3,FALSE) -> 0.0002147279815 | C113: 0 | D113: =NORMDIST(A113,Normalfordeling!D$2,Normalfordeling!D$3,TRUE) -> 5.22282324e-05
A114: =(Normalfordeling!D$6-Normalfordeling!C$6)/1000+A113 -> 1.13 | B114: =NORMDIST(A114,Normalfordeling!D$2,Normalfordeling!D$3,FALSE) -> 0.0002232120072 | C114: 0 | D114: =NORMDIST(A114,Normalfordeling!D$2,Normalfordeling!D$3,TRUE) -> 5.441767663e-05
A115: =(Normalfordeling!D$6-Normalfordeling!C$6)/1000+A114 -> 1.14 | B115: =NORMDIST(A115,Normalfordeling!D$2,Normalfordeling!D$3,FALSE) -> 0.0002320080397 | C115: 0 | D115: =NORMDIST(A115,Normalfordeling!D$2,Normalfordeling!D$3,TRUE) -> 5.669351253e-05
A116: =(Normalfordeling!D$6-Normalfordeling!C$6)/1000+A115 -> 1.15 | B116: =NORMDIST(A116,Normalfordeling!D$2,Normalfordeling!D$3,FALSE) -> 0.0002411265802 | C116: 0 | D116: =NORMDIST(A116,Normalfordeling!D$2,Normalfordeling!D$3,TRUE) -> 5.905891242e-05
A117: =(Normalfordeling!D$6-Normalfordeling!C$6)/1000+A116 -> 1.16 | B117: =NORMDIST(A117,Normalfordeling!D$2,Normalfordeling!D$3,FALSE) -> 0.0002505784449 | C117: 0 | D117: =NORMDIST(A117,Normalfordeling!D$2,Normalfordeling!D$3,TRUE) -> 6.151715518e-05
A118: =(Normalfordeling!D$6-Normalfordeling!C$6)/1000+A117 -> 1.17 | B118: =NORMDIST(A118,Normalfordeling!D$2,Normalfordeling!D$3,FALSE) -> 0.0002603747722 | C118: 0 | D118: =NORMDIST(A118,Normalfordeling!D$2,Normalfordeling!D$3,TRUE) -> 6.407162949e-05
A119: =(Normalfordeling!D$6-Normalfordeling!C$6)/1000+A118 -> 1.18 | B119: =NORMDIST(A119,Normalfordeling!D$2,Normalfordeling!D$3,FALSE) -> 0.0002705270315 | C119: 0 | D119: =NORMDIST(A119,Normalfordeling!D$2,Normalfordeling!D$3,TRUE) -> 6.672583703e-05
A120: =(Normalfordeling!D$6-Normalfordeling!C$6)/1000+A119 -> 1.19 | B120: =NORMDIST(A120,Normalfordeling!D$2,Normalfordeling!D$3,FALSE) -> 0.0002810470308 | C120: 0 | D120: =NORMDIST(A120,Normalfordeling!D$2,Normalfordeling!D$3,TRUE) -> 6.948339588e-05
A121: =(Normalfordeling!D$6-Normalfordeling!C$6)/1000+A120 -> 1.2 | B121: =NORMDIST(A121,Normalfordeling!D$2,Normalfordeling!D$3,FALSE) -> 0.0002919469258 | C121: 0 | D121: =NORMDIST(A121,Normalfordeling!D$2,Normalfordeling!D$3,TRUE) -> 7.234804393e-05
A122: =(Normalfordeling!D$6-Normalfordeling!C$6)/1000+A121 -> 1.21 | B122: =NORMDIST(A122,Normalfordeling!D$2,Normalfordeling!D$3,FALSE) -> 0.0003032392278 | C122: 0 | D122: =NORMDIST(A122,Normalfordeling!D$2,Normalfordeling!D$3,TRUE) -> 7.532364238e-05
A123: =(Normalfordeling!D$6-Normalfordeling!C$6)/1000+A122 -> 1.22 | B123: =NORMDIST(A123,Normalfordeling!D$2,Normalfordeling!D$3,FALSE) -> 0.0003149368129 | C123: 0 | D123: =NORMDIST(A123,Normalfordeling!D$2,Normalfordeling!D$3,TRUE) -> 7.841417938e-05
A124: =(Normalfordeling!D$6-Normalfordeling!C$6)/1000+A123 -> 1.23 | B124: =NORMDIST(A124,Normalfordeling!D$2,Normalfordeling!D$3,FALSE) -> 0.0003270529305 | C124: 0 | D124: =NORMDIST(A124,Normalfordeling!D$2,Normalfordeling!D$3,TRUE) -> 8.16237737e-05
A125: =(Normalfordeling!D$6-Normalfordeling!C$6)/1000+A124 -> 1.24 | B125: =NORMDIST(A125,Normalfordeling!D$2,Normalfordeling!D$3,FALSE) -> 0.0003396012125 | C125: 0 | D125: =NORMDIST(A125,Normalfordeling!D$2,Normalfordeling!D$3,TRUE) -> 8.49566785e-05
A126: =(Normalfordeling!D$6-Normalfordeling!C$6)/1000+A125 -> 1.25 | B126: =NORMDIST(A126,Normalfordeling!D$2,Normalfordeling!D$3,FALSE) -> 0.0003525956824 | C126: 0 | D126: =NORMDIST(A126,Normalfordeling!D$2,Normalfordeling!D$3,TRUE) -> 8.84172852e-05
A127: =(Normalfordeling!D$6-Normalfordeling!C$6)/1000+A126 -> 1.26 | B127: =NORMDIST(A127,Normalfordeling!D$2,Normalfordeling!D$3,FALSE) -> 0.0003660507646 | C127: 0 | D127: =NORMDIST(A127,Normalfordeling!D$2,Normalfordeling!D$3,TRUE) -> 9.201012747e-05
A128: =(Normalfordeling!D$6-Normalfordeling!C$6)/1000+A127 -> 1.27 | B128: =NORMDIST(A128,Normalfordeling!D$2,Normalfordeling!D$3,FALSE) -> 0.0003799812938 | C128: 0 | D128: =NORMDIST(A128,Normalfordeling!D$2,Normalfordeling!D$3,TRUE) -> 9.573988527e-05
A129: =(Normalfordeling!D$6-Normalfordeling!C$6)/1000+A128 -> 1.28 | B129: =NORMDIST(A129,Normalfordeling!D$2,Normalfordeling!D$3,FALSE) -> 0.000394402525 | C129: 0 | D129: =NORMDIST(A129,Normalfordeling!D$2,Normalfordeling!D$3,TRUE) -> 9.961138898e-05
A130: =(Normalfordeling!D$6-Normalfordeling!C$6)/1000+A129 -> 1.29 | B130: =NORMDIST(A130,Normalfordeling!D$2,Normalfordeling!D$3,FALSE) -> 0.0004093301425 | C130: =IF(AND(A130>=$C$1001,A130<=$C$1002),B130,0) -> 0 | D130: =NORMDIST(A130,Normalfordeling!D$2,Normalfordeling!D$3,TRUE) -> 0.0001036296237
A131: =(Normalfordeling!D$6-Normalfordeling!C$6)/1000+A130 -> 1.3 | B131: =NORMDIST(A131,Normalfordeling!D$2,Normalfordeling!D$3,FALSE) -> 0.0004247802706 | C131: 0 | D131: =NORMDIST(A131,Normalfordeling!D$2,Normalfordeling!D$3,TRUE) -> 0.0001077997335
A132: =(Normalfordeling!D$6-Normalfordeling!C$6)/1000+A131 -> 1.31 | B132: =NORMDIST(A132,Normalfordeling!D$2,Normalfordeling!D$3,FALSE) -> 0.0004407694831 | C132: 0 | D132: =NORMDIST(A132,Normalfordeling!D$2,Normalfordeling!D$3,TRUE) -> 0.000112127026
A133: =(Normalfordeling!D$6-Normalfordeling!C$6)/1000+A132 -> 1.32 | B133: =NORMDIST(A133,Normalfordeling!D$2,Normalfordeling!D$3,FALSE) -> 0.0004573148141 | C133: 0 | D133: =NORMDIST(A133,Normalfordeling!D$2,Normalfordeling!D$3,TRUE) -> 0.0001166169768
A134: =(Normalfordeling!D$6-Normalfordeling!C$6)/1000+A133 -> 1.33 | B134: =NORMDIST(A134,Normalfordeling!D$2,Normalfordeling!D$3,FALSE) -> 0.0004744337676 | C134: 0 | D134: =NORMDIST(A134,Normalfordeling!D$2,Normalfordeling!D$3,TRUE) -> 0.0001212752343
A135: =(Normalfordeling!D$6-Normalfordeling!C$6)/1000+A134 -> 1.34 | B135: =NORMDIST(A135,Normalfordeling!D$2,Normalfordeling!D$3,FALSE) -> 0.0004921443288 | C135: 0 | D135: =NORMDIST(A135,Normalfordeling!D$2,Normalfordeling!D$3,TRUE) -> 0.0001261076241
A136: =(Normalfordeling!D$6-Normalfordeling!C$6)/1000+A135 -> 1.35 | B136: =NORMDIST(A136,Normalfordeling!D$2,Normalfordeling!D$3,FALSE) -> 0.0005104649743 | C136: 0 | D136: =NORMDIST(A136,Normalfordeling!D$2,Normalfordeling!D$3,TRUE) -> 0.0001311201544
A137: =(Normalfordeling!D$6-Normalfordeling!C$6)/1000+A136 -> 1.36 | B137: =NORMDIST(A137,Normalfordeling!D$2,Normalfordeling!D$3,FALSE) -> 0.0005294146831 | C137: 0 | D137: =NORMDIST(A137,Normalfordeling!D$2,Normalfordeling!D$3,TRUE) -> 0.0001363190204
A138: =(Normalfordeling!D$6-Normalfordeling!C$6)/1000+A137 -> 1.37 | B138: =NORMDIST(A138,Normalfordeling!D$2,Normalfordeling!D$3,FALSE) -> 0.0005490129474 | C138: 0 | D138: =NORMDIST(A138,Normalfordeling!D$2,Normalfordeling!D$3,TRUE) -> 0.0001417106099
A139: =(Normalfordeling!D$6-Normalfordeling!C$6)/1000+A138 -> 1.38 | B139: =NORMDIST(A139,Normalfordeling!D$2,Normalfordeling!D$3,FALSE) -> 0.0005692797838 | C139: 0 | D139: =NORMDIST(A139,Normalfordeling!D$2,Normalfordeling!D$3,TRUE) -> 0.0001473015079
A140: =(Normalfordeling!D$6-Normalfordeling!C$6)/1000+A139 -> 1.39 | B140: =NORMDIST(A140,Normalfordeling!D$2,Normalfordeling!D$3,FALSE) -> 0.0005902357449 | C140: 0 | D140: =NORMDIST(A140,Normalfordeling!D$2,Normalfordeling!D$3,TRUE) -> 0.0001530985026
A141: =(Normalfordeling!D$6-Normalfordeling!C$6)/1000+A140 -> 1.4 | B141: =NORMDIST(A141,Normalfordeling!D$2,Normalfordeling!D$3,FALSE) -> 0.0006119019301 | C141: 0 | D141: =NORMDIST(A141,Normalfordeling!D$2,Normalfordeling!D$3,TRUE) -> 0.0001591085902
A142: =(Normalfordeling!D$6-Normalfordeling!C$6)/1000+A141 -> 1.41 | B142: =NORMDIST(A142,Normalfordeling!D$2,Normalfordeling!D$3,FALSE) -> 0.0006342999975 | C142: 0 | D142: =NORMDIST(A142,Normalfordeling!D$2,Normalfordeling!D$3,TRUE) -> 0.0001653389807
A143: =(Normalfordeling!D$6-Normalfordeling!C$6)/1000+A142 -> 1.42 | B143: =NORMDIST(A143,Normalfordeling!D$2,Normalfordeling!D$3,FALSE) -> 0.0006574521757 | C143: 0 | D143: =NORMDIST(A143,Normalfordeling!D$2,Normalfordeling!D$3,TRUE) -> 0.0001717971037
A144: =(Normalfordeling!D$6-Normalfordeling!C$6)/1000+A143 -> 1.43 | B144: =NORMDIST(A144,Normalfordeling!D$2,Normalfordeling!D$3,FALSE) -> 0.0006813812751 | C144: 0 | D144: =NORMDIST(A144,Normalfordeling!D$2,Normalfordeling!D$3,TRUE) -> 0.0001784906139
A145: =(Normalfordeling!D$6-Normalfordeling!C$6)/1000+A144 -> 1.44 | B145: =NORMDIST(A145,Normalfordeling!D$2,Normalfordeling!D$3,FALSE) -> 0.0007061107005 | C145: 0 | D145: =NORMDIST(A145,Normalfordeling!D$2,Normalfordeling!D$3,TRUE) -> 0.0001854273969
A146: =(Normalfordeling!D$6-Normalfordeling!C$6)/1000+A145 -> 1.45 | B146: =NORMDIST(A146,Normalfordeling!D$2,Normalfordeling!D$3,FALSE) -> 0.0007316644628 | C146: 0 | D146: =NORMDIST(A146,Normalfordeling!D$2,Normalfordeling!D$3,TRUE) -> 0.0001926155756
A147: =(Normalfordeling!D$6-Normalfordeling!C$6)/1000+A146 -> 1.46 | B147: =NORMDIST(A147,Normalfordeling!D$2,Normalfordeling!D$3,FALSE) -> 0.0007580671914 | C147: 0 | D147: =NORMDIST(A147,Normalfordeling!D$2,Normalfordeling!D$3,TRUE) -> 0.000200063516
A148: =(Normalfordeling!D$6-Normalfordeling!C$6)/1000+A147 -> 1.47 | B148: =NORMDIST(A148,Normalfordeling!D$2,Normalfordeling!D$3,FALSE) -> 0.0007853441464 | C148: 0 | D148: =NORMDIST(A148,Normalfordeling!D$2,Normalfordeling!D$3,TRUE) -> 0.0002077798335
A149: =(Normalfordeling!D$6-Normalfordeling!C$6)/1000+A148 -> 1.48 | B149: =NORMDIST(A149,Normalfordeling!D$2,Normalfordeling!D$3,FALSE) -> 0.0008135212311 | C149: 0 | D149: =NORMDIST(A149,Normalfordeling!D$2,Normalfordeling!D$3,TRUE) -> 0.0002157733993
A150: =(Normalfordeling!D$6-Normalfordeling!C$6)/1000+A149 -> 1.49 | B150: =NORMDIST(A150,Normalfordeling!D$2,Normalfordeling!D$3,FALSE) -> 0.0008426250047 | C150: 0 | D150: =NORMDIST(A150,Normalfordeling!D$2,Normalfordeling!D$3,TRUE) -> 0.000224053347
A151: =(Normalfordeling!D$6-Normalfordeling!C$6)/1000+A150 -> 1.5 | B151: =NORMDIST(A151,Normalfordeling!D$2,Normalfordeling!D$3,FALSE) -> 0.000872682695 | C151: 0 | D151: =NORMDIST(A151,Normalfordeling!D$2,Normalfordeling!D$3,TRUE) -> 0.000232629079
A152: =(Normalfordeling!D$6-Normalfordeling!C$6)/1000+A151 -> 1.51 | B152: =NORMDIST(A152,Normalfordeling!D$2,Normalfordeling!D$3,FALSE) -> 0.0009037222113 | C152: 0 | D152: =NORMDIST(A152,Normalfordeling!D$2,Normalfordeling!D$3,TRUE) -> 0.0002415102736
A153: =(Normalfordeling!D$6-Normalfordeling!C$6)/1000+A152 -> 1.52 | B153: =NORMDIST(A153,Normalfordeling!D$2,Normalfordeling!D$3,FALSE) -> 0.0009357721569 | C153: 0 | D153: =NORMDIST(A153,Normalfordeling!D$2,Normalfordeling!D$3,TRUE) -> 0.0002507068913
A154: =(Normalfordeling!D$6-Normalfordeling!C$6)/1000+A153 -> 1.53 | B154: =NORMDIST(A154,Normalfordeling!D$2,Normalfordeling!D$3,FALSE) -> 0.0009688618429 | C154: 0 | D154: =NORMDIST(A154,Normalfordeling!D$2,Normalfordeling!D$3,TRUE) -> 0.0002602291824
A155: =(Normalfordeling!D$6-Normalfordeling!C$6)/1000+A154 -> 1.54 | B155: =NORMDIST(A155,Normalfordeling!D$2,Normalfordeling!D$3,FALSE) -> 0.001003021301 | C155: 0 | D155: =NORMDIST(A155,Normalfordeling!D$2,Normalfordeling!D$3,TRUE) -> 0.000270087694
A156: =(Normalfordeling!D$6-Normalfordeling!C$6)/1000+A155 -> 1.55 | B156: =NORMDIST(A156,Normalfordeling!D$2,Normalfordeling!D$3,FALSE) -> 0.001038281296 | C156: 0 | D156: =NORMDIST(A156,Normalfordeling!D$2,Normalfordeling!D$3,TRUE) -> 0.0002802932768
A157: =(Normalfordeling!D$6-Normalfordeling!C$6)/1000+A156 -> 1.56 | B157: =NORMDIST(A157,Normalfordeling!D$2,Normalfordeling!D$3,FALSE) -> 0.00107467334 | C157: 0 | D157: =NORMDIST(A157,Normalfordeling!D$2,Normalfordeling!D$3,TRUE) -> 0.0002908570933
A158: =(Normalfordeling!D$6-Normalfordeling!C$6)/1000+A157 -> 1.57 | B158: =NORMDIST(A158,Normalfordeling!D$2,Normalfordeling!D$3,FALSE) -> 0.001112229707 | C158: 0 | D158: =NORMDIST(A158,Normalfordeling!D$2,Normalfordeling!D$3,TRUE) -> 0.0003017906246
A159: =(Normalfordeling!D$6-Normalfordeling!C$6)/1000+A158 -> 1.58 | B159: =NORMDIST(A159,Normalfordeling!D$2,Normalfordeling!D$3,FALSE) -> 0.001150983444 | C159: 0 | D159: =NORMDIST(A159,Normalfordeling!D$2,Normalfordeling!D$3,TRUE) -> 0.0003131056786
A160: =(Normalfordeling!D$6-Normalfordeling!C$6)/1000+A159 -> 1.59 | B160: =NORMDIST(A160,Normalfordeling!D$2,Normalfordeling!D$3,FALSE) -> 0.001190968386 | C160: 0 | D160: =NORMDIST(A160,Normalfordeling!D$2,Normalfordeling!D$3,TRUE) -> 0.0003248143974
A161: =(Normalfordeling!D$6-Normalfordeling!C$6)/1000+A160 -> 1.6 | B161: =NORMDIST(A161,Normalfordeling!D$2,Normalfordeling!D$3,FALSE) -> 0.001232219168 | C161: 0 | D161: =NORMDIST(A161,Normalfordeling!D$2,Normalfordeling!D$3,TRUE) -> 0.0003369292657
A162: =(Normalfordeling!D$6-Normalfordeling!C$6)/1000+A161 -> 1.61 | B162: =NORMDIST(A162,Normalfordeling!D$2,Normalfordeling!D$3,FALSE) -> 0.001274771244 | C162: 0 | D162: =NORMDIST(A162,Normalfordeling!D$2,Normalfordeling!D$3,TRUE) -> 0.0003494631183
A163: =(Normalfordeling!D$6-Normalfordeling!C$6)/1000+A162 -> 1.62 | B163: =NORMDIST(A163,Normalfordeling!D$2,Normalfordeling!D$3,FALSE) -> 0.001318660892 | C163: 0 | D163: =NORMDIST(A163,Normalfordeling!D$2,Normalfordeling!D$3,TRUE) -> 0.000362429149
A164: =(Normalfordeling!D$6-Normalfordeling!C$6)/1000+A163 -> 1.63 | B164: =NORMDIST(A164,Normalfordeling!D$2,Normalfordeling!D$3,FALSE) -> 0.001363925236 | C164: 0 | D164: =NORMDIST(A164,Normalfordeling!D$2,Normalfordeling!D$3,TRUE) -> 0.0003758409184
A165: =(Normalfordeling!D$6-Normalfordeling!C$6)/1000+A164 -> 1.64 | B165: =NORMDIST(A165,Normalfordeling!D$2,Normalfordeling!D$3,FALSE) -> 0.001410602257 | C165: 0 | D165: =NORMDIST(A165,Normalfordeling!D$2,Normalfordeling!D$3,TRUE) -> 0.0003897123626
A166: =(Normalfordeling!D$6-Normalfordeling!C$6)/1000+A165 -> 1.65 | B166: =NORMDIST(A166,Normalfordeling!D$2,Normalfordeling!D$3,FALSE) -> 0.001458730805 | C166: 0 | D166: =NORMDIST(A166,Normalfordeling!D$2,Normalfordeling!D$3,TRUE) -> 0.0004040578019
A167: =(Normalfordeling!D$6-Normalfordeling!C$6)/1000+A166 -> 1.66 | B167: =NORMDIST(A167,Normalfordeling!D$2,Normalfordeling!D$3,FALSE) -> 0.001508350615 | C167: 0 | D167: =NORMDIST(A167,Normalfordeling!D$2,Normalfordeling!D$3,TRUE) -> 0.0004188919495
A168: =(Normalfordeling!D$6-Normalfordeling!C$6)/1000+A167 -> 1.67 | B168: =NORMDIST(A168,Normalfordeling!D$2,Normalfordeling!D$3,FALSE) -> 0.001559502322 | C168: 0 | D168: =NORMDIST(A168,Normalfordeling!D$2,Normalfordeling!D$3,TRUE) -> 0.0004342299204
A169: =(Normalfordeling!D$6-Normalfordeling!C$6)/1000+A168 -> 1.68 | B169: =NORMDIST(A169,Normalfordeling!D$2,Normalfordeling!D$3,FALSE) -> 0.001612227472 | C169: 0 | D169: =NORMDIST(A169,Normalfordeling!D$2,Normalfordeling!D$3,TRUE) -> 0.0004500872406
A170: =(Normalfordeling!D$6-Normalfordeling!C$6)/1000+A169 -> 1.69 | B170: =NORMDIST(A170,Normalfordeling!D$2,Normalfordeling!D$3,FALSE) -> 0.00166656854 | C170: 0 | D170: =NORMDIST(A170,Normalfordeling!D$2,Normalfordeling!D$3,TRUE) -> 0.0004664798561
A171: =(Normalfordeling!D$6-Normalfordeling!C$6)/1000+A170 -> 1.7 | B171: =NORMDIST(A171,Normalfordeling!D$2,Normalfordeling!D$3,FALSE) -> 0.001722568939 | C171: 0 | D171: =NORMDIST(A171,Normalfordeling!D$2,Normalfordeling!D$3,TRUE) -> 0.0004834241424
A172: =(Normalfordeling!D$6-Normalfordeling!C$6)/1000+A171 -> 1.71 | B172: =NORMDIST(A172,Normalfordeling!D$2,Normalfordeling!D$3,FALSE) -> 0.00178027304 | C172: 0 | D172: =NORMDIST(A172,Normalfordeling!D$2,Normalfordeling!D$3,TRUE) -> 0.0005009369138
A173: =(Normalfordeling!D$6-Normalfordeling!C$6)/1000+A172 -> 1.72 | B173: =NORMDIST(A173,Normalfordeling!D$2,Normalfordeling!D$3,FALSE) -> 0.001839726181 | C173: 0 | D173: =NORMDIST(A173,Normalfordeling!D$2,Normalfordeling!D$3,TRUE) -> 0.0005190354332
A174: =(Normalfordeling!D$6-Normalfordeling!C$6)/1000+A173 -> 1.73 | B174: =NORMDIST(A174,Normalfordeling!D$2,Normalfordeling!D$3,FALSE) -> 0.001900974683 | C174: 0 | D174: =NORMDIST(A174,Normalfordeling!D$2,Normalfordeling!D$3,TRUE) -> 0.0005377374218
A175: =(Normalfordeling!D$6-Normalfordeling!C$6)/1000+A174 -> 1.74 | B175: =NORMDIST(A175,Normalfordeling!D$2,Normalfordeling!D$3,FALSE) -> 0.001964065866 | C175: 0 | D175: =NORMDIST(A175,Normalfordeling!D$2,Normalfordeling!D$3,TRUE) -> 0.000557061069
A176: =(Normalfordeling!D$6-Normalfordeling!C$6)/1000+A175 -> 1.75 | B176: =NORMDIST(A176,Normalfordeling!D$2,Normalfordeling!D$3,FALSE) -> 0.002029048057 | C176: 0 | D176: =NORMDIST(A176,Normalfordeling!D$2,Normalfordeling!D$3,TRUE) -> 0.0005770250424
A177: =(Normalfordeling!D$6-Normalfordeling!C$6)/1000+A176 -> 1.76 | B177: =NORMDIST(A177,Normalfordeling!D$2,Normalfordeling!D$3,FALSE) -> 0.002095970613 | C177: 0 | D177: =NORMDIST(A177,Normalfordeling!D$2,Normalfordeling!D$3,TRUE) -> 0.0005976484979
A178: =(Normalfordeling!D$6-Normalfordeling!C$6)/1000+A177 -> 1.77 | B178: =NORMDIST(A178,Normalfordeling!D$2,Normalfordeling!D$3,FALSE) -> 0.002164883925 | C178: 0 | D178: =NORMDIST(A178,Normalfordeling!D$2,Normalfordeling!D$3,TRUE) -> 0.0006189510904
A179: =(Normalfordeling!D$6-Normalfordeling!C$6)/1000+A178 -> 1.78 | B179: =NORMDIST(A179,Normalfordeling!D$2,Normalfordeling!D$3,FALSE) -> 0.00223583944 | C179: 0 | D179: =NORMDIST(A179,Normalfordeling!D$2,Normalfordeling!D$3,TRUE) -> 0.0006409529837
A180: =(Normalfordeling!D$6-Normalfordeling!C$6)/1000+A179 -> 1.79 | B180: =NORMDIST(A180,Normalfordeling!D$2,Normalfordeling!D$3,FALSE) -> 0.002308889668 | C180: 0 | D180: =NORMDIST(A180,Normalfordeling!D$2,Normalfordeling!D$3,TRUE) -> 0.0006636748614
A181: =(Normalfordeling!D$6-Normalfordeling!C$6)/1000+A180 -> 1.8 | B181: =NORMDIST(A181,Normalfordeling!D$2,Normalfordeling!D$3,FALSE) -> 0.002384088201 | C181: 0 | D181: =NORMDIST(A181,Normalfordeling!D$2,Normalfordeling!D$3,TRUE) -> 0.0006871379379
A182: =(Normalfordeling!D$6-Normalfordeling!C$6)/1000+A181 -> 1.81 | B182: =NORMDIST(A182,Normalfordeling!D$2,Normalfordeling!D$3,FALSE) -> 0.002461489725 | C182: 0 | D182: =NORMDIST(A182,Normalfordeling!D$2,Normalfordeling!D$3,TRUE) -> 0.0007113639686
A183: =(Normalfordeling!D$6-Normalfordeling!C$6)/1000+A182 -> 1.82 | B183: =NORMDIST(A183,Normalfordeling!D$2,Normalfordeling!D$3,FALSE) -> 0.002541150029 | C183: 0 | D183: =NORMDIST(A183,Normalfordeling!D$2,Normalfordeling!D$3,TRUE) -> 0.0007363752616
A184: =(Normalfordeling!D$6-Normalfordeling!C$6)/1000+A183 -> 1.83 | B184: =NORMDIST(A184,Normalfordeling!D$2,Normalfordeling!D$3,FALSE) -> 0.002623126025 | C184: 0 | D184: =NORMDIST(A184,Normalfordeling!D$2,Normalfordeling!D$3,TRUE) -> 0.0007621946881
A185: =(Normalfordeling!D$6-Normalfordeling!C$6)/1000+A184 -> 1.84 | B185: =NORMDIST(A185,Normalfordeling!D$2,Normalfordeling!D$3,FALSE) -> 0.002707475757 | C185: 0 | D185: =NORMDIST(A185,Normalfordeling!D$2,Normalfordeling!D$3,TRUE) -> 0.0007888456944
A186: =(Normalfordeling!D$6-Normalfordeling!C$6)/1000+A185 -> 1.85 | B186: =NORMDIST(A186,Normalfordeling!D$2,Normalfordeling!D$3,FALSE) -> 0.002794258415 | C186: 0 | D186: =NORMDIST(A186,Normalfordeling!D$2,Normalfordeling!D$3,TRUE) -> 0.0008163523128
A187: =(Normalfordeling!D$6-Normalfordeling!C$6)/1000+A186 -> 1.86 | B187: =NORMDIST(A187,Normalfordeling!D$2,Normalfordeling!D$3,FALSE) -> 0.002883534348 | C187: 0 | D187: =NORMDIST(A187,Normalfordeling!D$2,Normalfordeling!D$3,TRUE) -> 0.0008447391735
A188: =(Normalfordeling!D$6-Normalfordeling!C$6)/1000+A187 -> 1.87 | B188: =NORMDIST(A188,Normalfordeling!D$2,Normalfordeling!D$3,FALSE) -> 0.002975365075 | C188: 0 | D188: =NORMDIST(A188,Normalfordeling!D$2,Normalfordeling!D$3,TRUE) -> 0.0008740315156
A189: =(Normalfordeling!D$6-Normalfordeling!C$6)/1000+A188 -> 1.88 | B189: =NORMDIST(A189,Normalfordeling!D$2,Normalfordeling!D$3,FALSE) -> 0.003069813301 | C189: 0 | D189: =NORMDIST(A189,Normalfordeling!D$2,Normalfordeling!D$3,TRUE) -> 0.0009042551998
A190: =(Normalfordeling!D$6-Normalfordeling!C$6)/1000+A189 -> 1.89 | B190: =NORMDIST(A190,Normalfordeling!D$2,Normalfordeling!D$3,FALSE) -> 0.003166942926 | C190: 0 | D190: =NORMDIST(A190,Normalfordeling!D$2,Normalfordeling!D$3,TRUE) -> 0.0009354367195
A191: =(Normalfordeling!D$6-Normalfordeling!C$6)/1000+A190 -> 1.9 | B191: =NORMDIST(A191,Normalfordeling!D$2,Normalfordeling!D$3,FALSE) -> 0.003266819056 | C191: 0 | D191: =NORMDIST(A191,Normalfordeling!D$2,Normalfordeling!D$3,TRUE) -> 0.0009676032132
A192: =(Normalfordeling!D$6-Normalfordeling!C$6)/1000+A191 -> 1.91 | B192: =NORMDIST(A192,Normalfordeling!D$2,Normalfordeling!D$3,FALSE) -> 0.003369508021 | C192: 0 | D192: =NORMDIST(A192,Normalfordeling!D$2,Normalfordeling!D$3,TRUE) -> 0.001000782477
A193: =(Normalfordeling!D$6-Normalfordeling!C$6)/1000+A192 -> 1.92 | B193: =NORMDIST(A193,Normalfordeling!D$2,Normalfordeling!D$3,FALSE) -> 0.003475077378 | C193: 0 | D193: =NORMDIST(A193,Normalfordeling!D$2,Normalfordeling!D$3,TRUE) -> 0.001035002975
A194: =(Normalfordeling!D$6-Normalfordeling!C$6)/1000+A193 -> 1.93 | B194: =NORMDIST(A194,Normalfordeling!D$2,Normalfordeling!D$3,FALSE) -> 0.003583595929 | C194: =IF(AND(A194>=$C$1001,A194<=$C$1002),B194,0) -> 0 | D194: =NORMDIST(A194,Normalfordeling!D$2,Normalfordeling!D$3,TRUE) -> 0.001070293855
A195: =(Normalfordeling!D$6-Normalfordeling!C$6)/1000+A194 -> 1.94 | B195: =NORMDIST(A195,Normalfordeling!D$2,Normalfordeling!D$3,FALSE) -> 0.00369513373 | C195: 0 | D195: =NORMDIST(A195,Normalfordeling!D$2,Normalfordeling!D$3,TRUE) -> 0.001106684957
A196: =(Normalfordeling!D$6-Normalfordeling!C$6)/1000+A195 -> 1.95 | B196: =NORMDIST(A196,Normalfordeling!D$2,Normalfordeling!D$3,FALSE) -> 0.003809762098 | C196: 0 | D196: =NORMDIST(A196,Normalfordeling!D$2,Normalfordeling!D$3,TRUE) -> 0.001144206831
A197: =(Normalfordeling!D$6-Normalfordeling!C$6)/1000+A196 -> 1.96 | B197: =NORMDIST(A197,Normalfordeling!D$2,Normalfordeling!D$3,FALSE) -> 0.003927553629 | C197: 0 | D197: =NORMDIST(A197,Normalfordeling!D$2,Normalfordeling!D$3,TRUE) -> 0.001182890743
A198: =(Normalfordeling!D$6-Normalfordeling!C$6)/1000+A197 -> 1.97 | B198: =NORMDIST(A198,Normalfordeling!D$2,Normalfordeling!D$3,FALSE) -> 0.0040485822 | C198: 0 | D198: =NORMDIST(A198,Normalfordeling!D$2,Normalfordeling!D$3,TRUE) -> 0.001222768694
A199: =(Normalfordeling!D$6-Normalfordeling!C$6)/1000+A198 -> 1.98 | B199: =NORMDIST(A199,Normalfordeling!D$2,Normalfordeling!D$3,FALSE) -> 0.004172922985 | C199: 0 | D199: =NORMDIST(A199,Normalfordeling!D$2,Normalfordeling!D$3,TRUE) -> 0.001263873428
A200: =(Normalfordeling!D$6-Normalfordeling!C$6)/1000+A199 -> 1.99 | B200: =NORMDIST(A200,Normalfordeling!D$2,Normalfordeling!D$3,FALSE) -> 0.004300652459 | C200: 0 | D200: =NORMDIST(A200,Normalfordeling!D$2,Normalfordeling!D$3,TRUE) -> 0.001306238449
... 802 more rows
